fUSD/lending_fUSD_20241118
["ID","MTS","AMOUNT","RATE_DAILY","PERIOD"]
[342474648,1731918730311,-1761.16,9.992e-05,2]
[342474649,1731918730321,-1761.16,9.992e-05,2]
[342474650,1731918730331,-8199.7,9.992e-05,2]
[342474651,1731918730341,-8199.7,9.992e-05,2]
[342474652,1731918730350,-8199.7,9.992e-05,2]
[342474653,1731918730360,-12650.48,9.992e-05,2]
[342474654,1731918730370,-12650.48,9.992e-05,2]
[342474655,1731918730379,-12650.48,9.992e-05,2]
[342474656,1731918730388,-12650.48,9.992e-05,2]
[342474657,1731918730398,-1197.37,9.992e-05,2]
[342474658,1731918730407,-1197.37,9.992e-05,2]
[342474659,1731918730417,-8199.7,9.992e-05,2]
[342474660,1731918730427,-8199.7031908,9.992e-05,2]
[342474661,1731918730436,-1197.37,9.992e-05,2]
[342474662,1731918730445,-1197.37,9.992e-05,2]
[342474663,1731918730456,-1197.37,9.992e-05,2]
[342474664,1731918730466,-1197.37,9.992e-05,2]
[342474665,1731918730475,-1197.37,9.992e-05,2]
[342474666,1731918730485,-1197.51667631,9.992e-05,2]
[342474667,1731918730494,-308.29035406,9.992e-05,2]
[342474668,1731918730504,-582.68463369,9.992e-05,2]
[342474669,1731918730514,-756.91,9.992e-05,2]
[342474670,1731918730523,-756.91,9.992e-05,2]
[342474671,1731918730533,-756.91,9.992e-05,2]
[342474672,1731918730542,-756.91,9.992e-05,2]
[342474673,1731918730551,-856.13,9.992e-05,2]
[342474674,1731918730561,-2737.31,9.992e-05,2]
[342474675,1731918730571,-856.13,9.992e-05,2]
[342474676,1731918730580,-2737.31,9.992e-05,2]
[342474677,1731918730589,-856.13,9.992e-05,2]
[342474678,1731918730598,-2737.31,9.992e-05,2]
[342474679,1731918730608,-856.13,9.992e-05,2]
[342474680,1731918730617,-2737.31,9.992e-05,2]
[342474681,1731918730627,-938.25,9.992e-05,2]
[342474682,1731918730637,-2737.31,9.992e-05,2]
[342474683,1731918730646,-938.25,9.992e-05,2]
[342474684,1731918730655,-2737.31,9.992e-05,2]
[342474685,1731918730665,-938.25,9.992e-05,2]
[342474686,1731918730674,-2737.31,9.992e-05,2]
[342474687,1731918730683,-938.25,9.992e-05,2]
[342474688,1731918730693,-2737.33733662,9.992e-05,2]
[342474689,1731918730706,-938.46279872,9.992e-05,2]
[342474690,1731918730715,-845.97,9.992e-05,2]
[342474691,1731918730725,-845.97,9.992e-05,2]
[342474692,1731918730734,-845.97,9.992e-05,2]
[342474693,1731918730743,-845.97,9.992e-05,2]
[342474694,1731918730753,-2441.5,9.992e-05,2]
[342474695,1731918730762,-2441.5,9.992e-05,2]
[342474696,1731918730771,-2441.5,9.992e-05,2]
[342474697,1731918730781,-2441.5,9.992e-05,2]
[342474698,1731918730790,-662.04,9.992e-05,2]
[342474699,1731918730799,-1091.55,9.992e-05,2]
[342474700,1731918730809,-662.04,9.992e-05,2]
[342474701,1731918730819,-1091.55,9.992e-05,2]
[342474702,1731918730828,-662.04,9.992e-05,2]
[342474703,1731918730838,-1091.55,9.992e-05,2]
[342474704,1731918730848,-662.04,9.992e-05,2]
[342474705,1731918730858,-1091.55,9.992e-05,2]
[342474706,1731918730868,-1091.74514872,9.992e-05,2]
[342474707,1731918730878,-671.78,9.992e-05,2]
[342474708,1731918730888,-671.78,9.992e-05,2]
[342474709,1731918730898,-818.48,9.992e-05,2]
[342474710,1731918730908,-671.78,9.992e-05,2]
[342474711,1731918730918,-818.48,9.992e-05,2]
[342474712,1731918730927,-671.78,9.992e-05,2]
[342474713,1731918730937,-818.48,9.992e-05,2]
[342474714,1731918730950,-672.0173537,9.992e-05,2]
[342474715,1731918730965,-818.48,9.992e-05,2]
[342474716,1731918730974,-1668.05,9.992e-05,2]
[342474717,1731918730984,-1668.05,9.992e-05,2]
[342474718,1731918730994,-1668.05,9.992e-05,2]
[342474719,1731918731005,-1668.05,9.992e-05,2]
[342474720,1731918731016,-1668.05,9.992e-05,2]
[342474721,1731918731025,-1668.05,9.992e-05,2]
[342474722,1731918731036,-1668.05,9.992e-05,2]
[342474723,1731918731046,-1668.21147499,9.992e-05,2]
[342474724,1731918731055,-3565.93,9.992e-05,2]
[342474725,1731918731065,-3565.93,9.992e-05,2]
[342474726,1731918731074,-3565.93,9.992e-05,2]
[342474727,1731918731084,-3565.93,9.992e-05,2]
[342474728,1731918731095,-500.0,9.992e-05,2]
[342474729,1731918731105,-500.0,9.992e-05,2]
[342474730,1731918731114,-500.0,9.992e-05,2]
[342474731,1731918731124,-532.69956196,9.992e-05,2]
[342474732,1731918731134,-957.1,9.992e-05,2]
[342474733,1731918731143,-957.1,9.992e-05,2]
[342474734,1731918731152,-957.1,9.992e-05,2]
[342474735,1731918731162,-1064.74,9.992e-05,2]
[342474736,1731918731171,-957.1,9.992e-05,2]
[342474737,1731918731181,-1064.74,9.992e-05,2]
[342474738,1731918731190,-1064.74,9.992e-05,2]
[342474739,1731918731199,-1064.74,9.992e-05,2]
[342474740,1731918731210,-941.27,9.992e-05,2]
[342474741,1731918731219,-941.27,9.992e-05,2]
[342474742,1731918731229,-941.27,9.992e-05,2]
[342474743,1731918731239,-941.27,9.992e-05,2]
[342474744,1731918731249,-941.50371663,9.992e-05,2]
[342474745,1731918731259,-644.3,9.992e-05,2]
[342474746,1731918731268,-644.3,9.992e-05,2]
[342474747,1731918731278,-644.3,9.992e-05,2]
[342474748,1731918731287,-644.3,9.992e-05,2]
[342474749,1731918731296,-644.3184078,9.992e-05,2]
[342474750,1731918731306,-3189.87,9.992e-05,2]
[342474751,1731918731315,-536.62,9.992e-05,2]
[342474752,1731918731324,-3189.87,9.992e-05,2]
[342474753,1731918731333,-536.62,9.992e-05,2]
[342474754,1731918731343,-3189.87,9.992e-05,2]
[342474755,1731918731353,-3189.87,9.992e-05,2]
[342474756,1731918731362,-678.42,9.992e-05,2]
[342474757,1731918731371,-678.42,9.992e-05,2]
[342474758,1731918731380,-536.62,9.992e-05,2]
[342474759,1731918731389,-678.42,9.992e-05,2]
[342474760,1731918731399,-678.42,9.992e-05,2]
[342474761,1731918731408,-536.62,9.992e-05,2]
[342474762,1731918731417,-500.0,9.992e-05,2]
[342474763,1731918731427,-504.5,9.992e-05,2]
[342474764,1731918731437,-500.0,9.992e-05,2]
[342474765,1731918731446,-500.0,9.992e-05,2]
[342474766,1731918731466,-500.0,9.992e-05,2]
[342474767,1731918731476,-500.0,9.992e-05,2]
[342474768,1731918731485,-334.13,9.992e-05,2]
[342474769,1731918731495,-820.41,9.992e-05,2]
[342474770,1731918731504,-820.41,9.992e-05,2]
[342474771,1731918731514,-820.41,9.992e-05,2]
[342474772,1731918731523,-820.41,9.992e-05,2]
[342474773,1731918731532,-820.4487129,9.992e-05,2]
[342474774,1731918731542,-4808.78,9.992e-05,2]
[342474775,1731918731552,-4808.78,9.992e-05,2]
[342474776,1731918731562,-4808.78,9.992e-05,2]
[342474777,1731918731571,-4808.78,9.992e-05,2]
[342474778,1731918731580,-1330.85,9.992e-05,2]
[342474779,1731918731590,-1330.85,9.992e-05,2]
[342474780,1731918731599,-1330.85,9.992e-05,2]
[342474781,1731918731608,-3290.73,9.992e-05,2]
[342474782,1731918731618,-3290.73,9.992e-05,2]
[342474783,1731918731627,-3290.73,9.992e-05,2]
[342474784,1731918731636,-1330.85,9.992e-05,2]
[342474785,1731918731646,-3290.73,9.992e-05,2]
[342474786,1731918731656,-3290.92070577,9.992e-05,2]
[342474787,1731918731666,-500.0,9.992e-05,2]
[342474788,1731918731675,-522.69195314,9.992e-05,2]
[342474789,1731918731685,-1465.09,9.992e-05,2]
[342474790,1731918731695,-1429.98,9.992e-05,2]
[342474791,1731918731706,-1429.98,9.992e-05,2]
[342474792,1731918731716,-1429.98,9.992e-05,2]
[342474793,1731918731726,-852.4,9.992e-05,2]
[342474794,1731918731735,-1429.98,9.992e-05,2]
[342474795,1731918731745,-852.4,9.992e-05,2]
[342474796,1731918731755,-1429.98,9.992e-05,2]
[342474797,1731918731764,-852.4,9.992e-05,2]
[342474798,1731918731774,-1429.98,9.992e-05,2]
[342474799,1731918731783,-852.4,9.992e-05,2]
[342474800,1731918731793,-1429.98,9.992e-05,2]
[342474801,1731918731802,-852.45796843,9.992e-05,2]
[342474802,1731918731812,-641.29,9.992e-05,2]
[342474803,1731918731823,-1430.19506471,9.992e-05,2]
[342474804,1731918731832,-641.29,9.992e-05,2]
[342474805,1731918731842,-641.29,9.992e-05,2]
[342474806,1731918731852,-4045.1,9.992e-05,2]
[342474807,1731918731862,-641.29,9.992e-05,2]
[342474808,1731918731872,-4045.1,9.992e-05,2]
[342474809,1731918731881,-641.40275524,9.992e-05,2]
[342474810,1731918731891,-4045.1,9.992e-05,2]
[342474811,1731918731900,-4045.1,9.992e-05,2]
[342474812,1731918731910,-4045.24562884,9.992e-05,2]
[342474813,1731918731919,-500.0,9.992e-05,2]
[342474814,1731918731928,-500.0,9.992e-05,2]
[342474815,1731918731937,-500.0,9.992e-05,2]
[342474816,1731918731949,-500.0,9.992e-05,2]
[342474817,1731918731965,-500.0,9.992e-05,2]
[342474818,1731918731975,-500.0,9.992e-05,2]
[342474819,1731918731986,-254.58560552,9.992e-05,2]
[342474820,1731918731997,-672.79,9.992e-05,2]
[342474821,1731918732007,-672.79,9.992e-05,2]
[342474822,1731918732017,-78413.28,9.992e-05,2]
[342474823,1731918732026,-672.79,9.992e-05,2]
[342474824,1731918732037,-78413.28,9.992e-05,2]
[342474825,1731918732047,-672.79,9.992e-05,2]
[342474826,1731918732056,-78413.28,9.992e-05,2]
[342474827,1731918732065,-78413.28,9.992e-05,2]
[342474828,1731918732075,-78413.38155137,9.992e-05,2]
[342474829,1731918732085,-1212.66,9.992e-05,2]
[342474830,1731918732094,-1212.66,9.992e-05,2]
[342474831,1731918732104,-1212.66,9.992e-05,2]
[342474832,1731918732114,-1212.66,9.992e-05,2]
[342474833,1731918732124,-500.0,9.992e-05,2]
[342474834,1731918732133,-500.0,9.992e-05,2]
[342474835,1731918732143,-500.0,9.992e-05,2]
[342474836,1731918732153,-500.0,9.992e-05,2]
[342474837,1731918732162,-412.65244786,9.992e-05,2]
[342474838,1731918732171,-500.0,9.992e-05,2]
[342474839,1731918732181,-474.63244618,9.992e-05,2]
[342474840,1731918732190,-1125.61,9.992e-05,2]
[342474841,1731918732203,-1125.61,9.992e-05,2]
[342474842,1731918732212,-1125.61,9.992e-05,2]
[342474843,1731918732221,-1125.61,9.992e-05,2]
[342474844,1731918732231,-1125.61,9.992e-05,2]
[342474845,1731918732241,-1125.61,9.992e-05,2]
[342474846,1731918732250,-1125.61,9.992e-05,2]
[342474847,1731918732260,-1125.69343292,9.992e-05,2]
[342474848,1731918732270,-828.59,9.992e-05,2]
[342474849,1731918732279,-828.59,9.992e-05,2]
[342474850,1731918732289,-828.59,9.992e-05,2]
[342474851,1731918732298,-760.78,9.992e-05,2]
[342474852,1731918732308,-828.59,9.992e-05,2]
[342474853,1731918732318,-760.78,9.992e-05,2]
[342474854,1731918732328,-828.81625905,9.992e-05,2]
[342474855,1731918732338,-760.78,9.992e-05,2]
[342474856,1731918732347,-760.78,9.992e-05,2]
[342474857,1731918732575,-4121.13,9.992e-05,2]
[342474858,1731918732585,-760.94768985,9.992e-05,2]
[342474859,1731918732595,-4121.13,9.992e-05,2]
[342474860,1731918732604,-704.54,9.992e-05,2]
[342474861,1731918732614,-4121.13,9.992e-05,2]
[342474862,1731918732624,-704.54,9.992e-05,2]
[342474863,1731918732634,-4121.13,9.992e-05,2]
[342474864,1731918732644,-704.54,9.992e-05,2]
[342474865,1731918732653,-4121.16873064,9.992e-05,2]
[342474866,1731918732663,-704.54,9.992e-05,2]
[342474867,1731918732672,-5248.49,9.992e-05,2]
[342474868,1731918732682,-5248.49,9.992e-05,2]
[342474869,1731918732692,-5248.49,9.992e-05,2]
[342474870,1731918732703,-5248.49,9.992e-05,2]
[342474871,1731918732713,-5248.71161736,9.992e-05,2]
[342474872,1731918732724,-607.44,9.992e-05,2]
[342474873,1731918732733,-607.44,9.992e-05,2]
[342474874,1731918732743,-607.44,9.992e-05,2]
[342474875,1731918732753,-607.44,9.992e-05,2]
[342474876,1731918732762,-607.53836004,9.992e-05,2]
[342474877,1731918732772,-582.68,9.992e-05,2]
[342474878,1731918732782,-6798.85,9.992e-05,2]
[342474879,1731918732791,-582.68,9.992e-05,2]
[342474880,1731918732801,-6798.85,9.992e-05,2]
[342474881,1731918732810,-582.68,9.992e-05,2]
[342474882,1731918732819,-6798.85,9.992e-05,2]
[342474883,1731918732829,-582.68,9.992e-05,2]
[342474884,1731918732838,-6798.85,9.992e-05,2]
[342474885,1731918732848,-6798.91558274,9.992e-05,2]
[342474886,1731918732858,-500.0,9.992e-05,2]
[342474887,1731918732868,-500.0,9.992e-05,2]
[342474888,1731918732878,-187.31414699,9.992e-05,2]
[342474889,1731918732887,-1300.02,9.992e-05,2]
[342474890,1731918732896,-1300.02,9.992e-05,2]
[342474891,1731918732905,-1300.02,9.992e-05,2]
[342474892,1731918732915,-1300.02,9.992e-05,2]
[342474893,1731918732926,-18579.52860704,9.992e-05,2]
[342474894,1731918732936,-13005.67002493,9.993e-05,2]
[342474895,1731918732946,-184.32180842,9.993e-05,2]
[342474896,1731918732960,-500.0,9.993e-05,2]
[342474897,1731918732970,-500.0,9.993e-05,2]
[342474898,1731918732980,-500.0,9.993e-05,2]
[342474899,1731918732989,-509.00910785,9.993e-05,2]
[342474900,1731918732998,-492.18396767,9.993e-05,2]
[342474901,1731918733007,-688.39,9.993e-05,2]
[342474902,1731918733017,-688.39,9.993e-05,2]
[342474903,1731918733025,-688.39,9.993e-05,2]
[342474904,1731918733035,-688.39,9.993e-05,2]
[342474905,1731918733045,-688.39,9.993e-05,2]
[342474906,1731918733055,-688.52072297,9.993e-05,2]
[342474907,1731918733064,-1068.59,9.993e-05,2]
[342474908,1731918733072,-1068.59,9.993e-05,2]
[342474909,1731918733081,-1068.59,9.993e-05,2]
[342474910,1731918733091,-548.94,9.993e-05,2]
[342474911,1731918733099,-548.94,9.993e-05,2]
[342474912,1731918733108,-548.94,9.993e-05,2]
[342474913,1731918733117,-548.94,9.993e-05,2]
[342474914,1731918733127,-548.94,9.993e-05,2]
[342474915,1731918733137,-1068.59,9.993e-05,2]
[342474916,1731918733147,-549.12964248,9.993e-05,2]
[342474917,1731918733156,-1068.59,9.993e-05,2]
[342474918,1731918733166,-1068.77323553,9.993e-05,2]
[342474919,1731918733176,-539.99,9.993e-05,2]
[342474920,1731918733186,-539.99,9.993e-05,2]
[342474921,1731918733196,-539.99,9.993e-05,2]
[342474922,1731918733208,-539.99,9.993e-05,2]
[342474923,1731918733217,-539.99,9.993e-05,2]
[342474924,1731918733227,-540.15941696,9.993e-05,2]
[342474925,1731918733236,-595.76,9.993e-05,2]
[342474926,1731918733245,-595.76,9.993e-05,2]
[342474927,1731918733254,-595.76,9.993e-05,2]
[342474928,1731918733263,-595.76,9.993e-05,2]
[342474929,1731918733273,-595.76,9.993e-05,2]
[342474930,1731918733282,-595.89344319,9.993e-05,2]
[342474931,1731918733292,-508.25,9.993e-05,2]
[342474932,1731918733302,-508.25,9.993e-05,2]
[342474933,1731918733311,-508.25,9.993e-05,2]
[342474934,1731918733321,-508.25,9.993e-05,2]
[342474935,1731918733330,-508.25,9.993e-05,2]
[342474936,1731918733340,-508.33970564,9.993e-05,2]
[342474937,1731918733350,-1000.17,9.993e-05,2]
[342474938,1731918733360,-1000.17,9.993e-05,2]
[342474939,1731918733370,-1000.17,9.993e-05,2]
[342474940,1731918733380,-1000.17,9.993e-05,2]
[342474941,1731918733389,-1000.17,9.993e-05,2]
[342474942,1731918733399,-1000.26779417,9.993e-05,2]
[342474943,1731918733409,-1247.3,9.993e-05,2]
[342474944,1731918733419,-1247.3,9.993e-05,2]
[342474945,1731918733428,-1247.3,9.993e-05,2]
[342474946,1731918733438,-1247.3,9.993e-05,2]
[342474947,1731918733447,-1247.3,9.993e-05,2]
[342474948,1731918733458,-1247.36747021,9.993e-05,2]
[342474949,1731918733468,-648.63,9.993e-05,2]
[342474950,1731918733477,-648.63,9.993e-05,2]
[342474951,1731918733486,-648.63,9.993e-05,2]
[342474952,1731918733496,-648.63,9.993e-05,2]
[342474953,1731918733506,-648.63,9.993e-05,2]
[342474954,1731918733515,-648.63511913,9.993e-05,2]
[342474955,1731918733525,-627.79,9.993e-05,2]
[342474956,1731918733535,-627.79,9.993e-05,2]
[342474957,1731918733544,-627.79,9.993e-05,2]
[342474958,1731918733553,-627.79,9.993e-05,2]
[342474959,1731918733563,-627.79,9.993e-05,2]
[342474960,1731918733572,-627.88066252,9.993e-05,2]
[342474961,1731918733581,-500.0,9.993e-05,2]
[342474962,1731918733591,-500.0,9.993e-05,2]
[342474963,1731918733600,-500.0,9.993e-05,2]
[342474964,1731918733610,-231.72169996,9.993e-05,2]
[342474965,1731918733619,-650.94,9.993e-05,2]
[342474966,1731918733628,-650.94,9.993e-05,2]
[342474967,1731918733638,-650.94,9.993e-05,2]
[342474968,1731918733647,-650.94,9.993e-05,2]
[342474969,1731918733657,-650.94,9.993e-05,2]
[342474970,1731918733667,-651.00702197,9.993e-05,2]
[342474971,1731918733675,-850.76,9.993e-05,2]
[342474972,1731918733685,-850.76,9.993e-05,2]
[342474973,1731918733695,-850.76,9.993e-05,2]
[342474974,1731918733706,-850.76,9.993e-05,2]
[342474975,1731918733715,-850.76,9.993e-05,2]
[342474976,1731918733724,-850.86800112,9.993e-05,2]
[342474977,1731918733734,-1178.54,9.993e-05,2]
[342474978,1731918733743,-1178.54,9.993e-05,2]
[342474979,1731918733753,-1178.54,9.993e-05,2]
[342474980,1731918733762,-1178.54,9.993e-05,2]
[342474981,1731918733771,-1178.54,9.993e-05,2]
[342474982,1731918733780,-1178.57947444,9.993e-05,2]
[342474983,1731918733789,-500.0,9.993e-05,2]
[342474984,1731918733799,-500.0,9.993e-05,2]
[342474985,1731918733808,-500.0,9.993e-05,2]
[342474986,1731918733818,-500.0,9.993e-05,2]
[342474987,1731918733827,-441.52,9.993e-05,2]
[342474988,1731918733837,-704.75,9.993e-05,2]
[342474989,1731918733846,-500.0,9.993e-05,2]
[342474990,1731918733856,-704.75,9.993e-05,2]
[342474991,1731918733865,-500.0,9.993e-05,2]
[342474992,1731918733875,-704.75,9.993e-05,2]
[342474993,1731918733884,-704.75,9.993e-05,2]
[342474994,1731918733894,-500.0,9.993e-05,2]
[342474995,1731918733903,-373.49783541,9.993e-05,2]
[342474996,1731918733913,-704.75,9.993e-05,2]
[342474997,1731918733922,-704.91356682,9.993e-05,2]
[342474998,1731918733931,-500.0,9.993e-05,2]
[342474999,1731918733940,-500.0,9.993e-05,2]
[342475000,1731918733951,-500.0,9.993e-05,2]
[342475001,1731918733963,-500.0,9.993e-05,2]
[342475002,1731918733973,-350.26532678,9.993e-05,2]
[342475003,1731918733982,-500.0,9.993e-05,2]
[342475004,1731918733992,-648.42400145,9.993e-05,2]
[342475005,1731918734002,-1744.36,9.993e-05,2]
[342475006,1731918734012,-1744.36,9.993e-05,2]
[342475007,1731918734022,-1744.36,9.993e-05,2]
[342475008,1731918734031,-1744.36,9.993e-05,2]
[342475009,1731918734042,-1744.36,9.993e-05,2]
[342475010,1731918734052,-1744.36,9.993e-05,2]
[342475011,1731918734062,-1744.36,9.993e-05,2]
[342475012,1731918734071,-1744.36,9.993e-05,2]
[342475013,1731918734080,-1744.36,9.993e-05,2]
[342475014,1731918734090,-1744.36,9.993e-05,2]
[342475015,1731918734099,-1744.36,9.993e-05,2]
[342475016,1731918734108,-1744.36,9.993e-05,2]
[342475017,1731918734118,-1744.43460249,9.993e-05,2]
[342475018,1731918734128,-915.82,9.993e-05,2]
[342475019,1731918734138,-915.82,9.993e-05,2]
[342475020,1731918734147,-915.82,9.993e-05,2]
[342475021,1731918734157,-915.82,9.993e-05,2]
[342475022,1731918734166,-915.82,9.993e-05,2]
[342475023,1731918734176,-915.92970758,9.993e-05,2]
[342475024,1731918734186,-564.71,9.993e-05,2]
[342475025,1731918734196,-564.71,9.993e-05,2]
[342475026,1731918734209,-564.71,9.993e-05,2]
[342475027,1731918734219,-564.71,9.993e-05,2]
[342475028,1731918734229,-564.71,9.993e-05,2]
[342475029,1731918734240,-564.82,9.993e-05,2]
[342475030,1731918734250,-500.0,9.993e-05,2]
[342475031,1731918734259,-500.0,9.993e-05,2]
[342475032,1731918734269,-500.0,9.993e-05,2]
[342475033,1731918734279,-500.0,9.993e-05,2]
[342475034,1731918734288,-500.0,9.993e-05,2]
[342475035,1731918734298,-236.79560326,9.993e-05,2]
[342475036,1731918734307,-757.77,9.993e-05,2]
[342475037,1731918734317,-757.77,9.993e-05,2]
[342475038,1731918734327,-757.77,9.993e-05,2]
[342475039,1731918734337,-757.77,9.993e-05,2]
[342475040,1731918734347,-757.77,9.993e-05,2]
[342475041,1731918734357,-757.77,9.993e-05,2]
[342475042,1731918734366,-757.77,9.993e-05,2]
[342475043,1731918734376,-500.0,9.993e-05,2]
[342475044,1731918734386,-500.0,9.993e-05,2]
[342475045,1731918734396,-500.0,9.993e-05,2]
[342475046,1731918734405,-500.0,9.993e-05,2]
[342475047,1731918734415,-602.98,9.993e-05,2]
[342475048,1731918734424,-602.98,9.993e-05,2]
[342475049,1731918734434,-602.98,9.993e-05,2]
[342475050,1731918734444,-602.98,9.993e-05,2]
[342475051,1731918734455,-602.98,9.993e-05,2]
[342475052,1731918734465,-603.10188263,9.993e-05,2]
[342475053,1731918734474,-762.94,9.993e-05,2]
[342475054,1731918734484,-762.94,9.993e-05,2]
[342475055,1731918734494,-762.94,9.993e-05,2]
[342475056,1731918734503,-762.94,9.993e-05,2]
[342475057,1731918734513,-762.94,9.993e-05,2]
[342475058,1731918734522,-762.94,9.993e-05,2]
[342475059,1731918734531,-762.94,9.993e-05,2]
[342475060,1731918734540,-595.18,9.993e-05,2]
[342475061,1731918734550,-595.18,9.993e-05,2]
[342475062,1731918734560,-595.18,9.993e-05,2]
[342475063,1731918734569,-595.18,9.993e-05,2]
[342475064,1731918734578,-595.18,9.993e-05,2]
[342475065,1731918734587,-635.26,9.993e-05,2]
[342475066,1731918734597,-635.26,9.993e-05,2]
[342475067,1731918734606,-595.38127096,9.993e-05,2]
[342475068,1731918734615,-635.26,9.993e-05,2]
[342475069,1731918734625,-635.26,9.993e-05,2]
[342475070,1731918734635,-635.26,9.993e-05,2]
[342475071,1731918734645,-635.32012755,9.993e-05,2]
[342475072,1731918734654,-626.92751183,9.993e-05,2]
[342475073,1731918734664,-500.0,9.993e-05,2]
[342475074,1731918734674,-500.0,9.993e-05,2]
[342475075,1731918734684,-578.29068234,9.993e-05,2]
[342475076,1731918734694,-500.0,9.993e-05,2]
[342475077,1731918734707,-500.0,9.993e-05,2]
[342475078,1731918734716,-500.0,9.993e-05,2]
[342475079,1731918734729,-500.0,9.993e-05,2]
[342475080,1731918734739,-500.0,9.993e-05,2]
[342475081,1731918734749,-500.0,9.993e-05,2]
[342475082,1731918734759,-500.0,9.993e-05,2]
[342475083,1731918734769,-1000.0,9.993e-05,2]
[342475084,1731918734779,-1000.0,9.993e-05,2]
[342475085,1731918734789,-970.44661129,9.993e-05,2]
[342475086,1731918734799,-801.09,9.993e-05,2]
[342475087,1731918734809,-801.09,9.993e-05,2]
[342475088,1731918734819,-801.09,9.993e-05,2]
[342475089,1731918734830,-801.09,9.993e-05,2]
[342475090,1731918734840,-801.09,9.993e-05,2]
[342475091,1731918734850,-801.09628429,9.993e-05,2]
[342475092,1731918734859,-500.0,9.993e-05,2]
[342475093,1731918734869,-500.0,9.993e-05,2]
[342475094,1731918734879,-500.0,9.993e-05,2]
[342475095,1731918734888,-500.0,9.993e-05,2]
[342475096,1731918734898,-500.0,9.993e-05,2]
[342475097,1731918734907,-500.0,9.993e-05,2]
[342475098,1731918734917,-500.0,9.993e-05,2]
[342475099,1731918734926,-901.01,9.993e-05,2]
[342475100,1731918734937,-901.01,9.993e-05,2]
[342475101,1731918734948,-901.01,9.993e-05,2]
[342475102,1731918734967,-901.01,9.993e-05,2]
[342475103,1731918734978,-901.01,9.993e-05,2]
[342475104,1731918734988,-901.18456286,9.993e-05,2]
[342475105,1731918734999,-500.0,9.993e-05,2]
[342475106,1731918735009,-500.0,9.993e-05,2]
[342475107,1731918735019,-500.0,9.993e-05,2]
[342475108,1731918735029,-500.0,9.993e-05,2]
[342475109,1731918735042,-500.0,9.993e-05,2]
[342475110,1731918735051,-446.09762717,9.993e-05,2]
[342475111,1731918735061,-737.51,9.993e-05,2]
[342475112,1731918735070,-737.51,9.993e-05,2]
[342475113,1731918735080,-737.51,9.993e-05,2]
[342475114,1731918735090,-737.51,9.993e-05,2]
[342475115,1731918735100,-737.51,9.993e-05,2]
[342475116,1731918735109,-737.682534,9.993e-05,2]
[342475117,1731918735118,-500.0,9.993e-05,2]
[342475118,1731918735128,-500.0,9.993e-05,2]
[342475119,1731918735138,-500.0,9.993e-05,2]
[342475120,1731918735148,-491.63743818,9.993e-05,2]
[342475121,1731918735159,-845.17,9.993e-05,2]
[342475122,1731918735169,-845.17,9.993e-05,2]
[342475123,1731918735178,-845.17,9.993e-05,2]
[342475124,1731918735188,-845.17,9.993e-05,2]
[342475125,1731918735198,-845.17,9.993e-05,2]
[342475126,1731918735213,-845.40456036,9.993e-05,2]
[342475127,1731918735223,-500.0,9.993e-05,2]
[342475128,1731918735232,-433.95740649,9.993e-05,2]
[342475129,1731918735242,-500.0,9.993e-05,2]
[342475130,1731918735251,-500.0,9.993e-05,2]
[342475131,1731918735261,-500.0,9.993e-05,2]
[342475132,1731918735270,-500.0,9.993e-05,2]
[342475133,1731918735280,-205.15405368,9.993e-05,2]
[342475134,1731918735290,-500.0,9.993e-05,2]
[342475135,1731918735299,-500.0,9.993e-05,2]
[342475136,1731918735309,-500.0,9.993e-05,2]
[342475137,1731918735318,-500.0,9.993e-05,2]
[342475138,1731918735327,-500.0,9.993e-05,2]
[342475139,1731918735336,-500.0,9.993e-05,2]
[342475140,1731918735346,-500.0,9.993e-05,2]
[342475141,1731918735355,-500.0,9.993e-05,2]
[342475142,1731918735365,-500.0,9.993e-05,2]
[342475143,1731918735375,-622.93152083,9.993e-05,2]
[342475144,1731918735385,-346.24023773,9.993e-05,2]
[342475145,1731918735394,-500.0,9.993e-05,2]
[342475146,1731918735403,-500.0,9.993e-05,2]
[342475147,1731918735413,-500.0,9.993e-05,2]